bitfinex/quotes_ETHUSD_20241129
["timestamp","ask_amount","ask_price","bid_price","bid_amount"]
[1732869468860,0.26231234,3568.1,3567.6,0.03252163]
[1732869469362,0.26231234,3568.0,3567.6,0.03252163]
[1732869469669,2.80256,3568.2,3567.6,0.03252163]
[1732869469967,0.26231756,3568.1,3567.6,0.03252163]
[1732869470323,0.26231756,3568.0,3567.6,0.03252163]
[1732869470549,0.26231756,3568.1,3567.6,0.03252163]
[1732869471423,3.06498756,3568.1,3567.6,0.03252163]
[1732869471628,0.26231756,3568.0,3567.6,0.03252163]
[1732869471867,0.26231756,3568.0,3567.4,0.829]
[1732869472184,3.06514756,3567.9,3567.4,0.829]
[1732869472329,2.80283,3567.9,3567.5,0.03267424]
[1732869473028,0.7714,3567.7,3567.5,0.03267424]
[1732869473224,0.7714,3567.7,3566.9,0.8254]
[1732869473225,3.15024314,3567.6,3566.9,0.8254]
[1732869473428,2.803,3567.6,3566.9,0.8254]
[1732869473862,0.26246604,3567.5,3566.9,0.8254]
[1732869474430,2.803,3567.6,3566.9,0.8254]
[1732869474636,0.2624734,3567.5,3566.9,0.8254]
[1732869475751,2.80316,3567.4,3566.8,2.8036]
[1732869477576,2.803,3567.6,3566.8,2.8036]
[1732869477761,3.06554332,3567.5,3566.8,2.8036]
[1732869478071,0.26244367,3567.4,3566.8,2.8036]
[1732869478282,2.8031,3567.5,3566.8,3.444756]
[1732869478480,0.26242979,3567.4,3566.8,3.444756]
[1732869478639,0.26243503,3567.3,3566.8,3.444756]
[1732869478835,2.8031,3567.5,3566.8,3.444756]
[1732869479083,0.26242741,3567.4,3566.8,3.444756]
[1732869479280,2.8031,3567.5,3566.8,3.444756]
[1732869479486,0.26241434,3567.4,3566.8,3.444756]
[1732869479645,2.8031,3567.5,3566.8,3.444756]
[1732869479850,0.26241446,3567.4,3566.8,0.641156]
[1732869480185,0.26241446,3567.3,3566.7,3.60779]
[1732869480338,2.80317,3567.4,3566.7,3.60779]
[1732869480544,0.26240888,3567.3,3566.7,3.60779]
[1732869480745,2.80317,3567.4,3566.7,3.60779]
[1732869480944,0.26240745,3567.3,3566.8,0.03188146]
[1732869481171,0.26240745,3567.3,3566.7,3.60779]
[1732869481340,0.26240745,3567.3,3566.8,0.03188146]
[1732869481536,0.26240745,3567.3,3566.7,3.60779]
[1732869481781,0.26240745,3567.3,3566.8,0.03188146]
[1732869482078,0.26240745,3567.3,3566.7,4.39845961]
[1732869482258,0.26240745,3567.3,3566.9,0.03184175]
[1732869482443,0.26236883,3567.3,3566.8,1.5269376]
[1732869482639,0.26236883,3567.5,3567.1,0.8071]
[1732869482877,0.26236883,3567.4,3567.1,0.8071]
[1732869483042,0.26236883,3567.4,3567.2,0.03173738]
[1732869483377,2.80309,3567.5,3567.2,0.03173738]
[1732869483573,0.26235941,3567.4,3567.2,0.03173738]
[1732869483777,2.80309,3567.5,3567.2,0.03173738]
[1732869483981,0.26236074,3567.4,3567.2,0.03173738]
[1732869484186,2.80309,3567.5,3567.2,0.03173738]
[1732869484347,0.26236106,3567.4,3567.2,0.03173738]
[1732869484550,2.80309,3567.5,3567.2,0.03173738]
[1732869484775,0.26235981,3567.4,3567.2,0.03173738]
[1732869484990,3.62692,3568.0,3567.2,0.39597512]
[1732869485293,0.2623476,3567.9,3567.5,2.80308]
[1732869485454,0.2623476,3567.8,3567.5,2.80308]
[1732869485647,0.2623476,3568.1,3567.6,0.03162287]
[1732869486047,0.2623476,3568.0,3567.6,0.03162287]
[1732869486288,0.2623476,3567.9,3567.6,0.03162287]
[1732869486468,0.2623476,3567.8,3567.6,0.03162287]
[1732869486677,0.2623476,3568.0,3567.6,0.03162287]
[1732869486877,2.80293,3567.7,3567.3,0.8158]
[1732869487194,0.2623476,3567.6,3567.3,0.8158]
[1732869487393,2.80293,3567.7,3567.3,0.8158]
[1732869487552,0.26239474,3567.6,3567.3,0.8158]
[1732869487752,2.80293,3567.7,3567.3,0.8158]
[1732869487953,0.26239488,3567.6,3567.3,0.8158]
[1732869488173,2.80293,3567.7,3567.3,0.8158]
[1732869488373,0.26244422,3567.6,3567.3,0.8158]
[1732869488675,2.80293,3567.7,3567.3,0.8158]
[1732869488878,0.2624414,3567.6,3567.3,0.8158]
[1732869489189,2.80276,3567.9,3567.0,3.61684]
[1732869489357,0.26249913,3567.8,3567.0,0.8134]
[1732869489562,0.26249913,3567.8,3566.8,2.80359]
[1732869489563,2.80329,3567.3,3566.7,0.7948]
[1732869489788,0.26249913,3567.2,3566.7,0.7948]
[1732869489983,2.26695614,3567.7,3566.7,0.7948]
[1732869490193,2.80313,3567.5,3566.8,2.80357]
[1732869490394,0.26252775,3567.4,3566.8,2.80357]
[1732869490558,0.26252775,3567.3,3566.8,2.80357]
[1732869490763,2.80316,3567.4,3566.8,2.80357]
[1732869490988,0.2625973,3567.3,3566.8,2.80357]
[1732869491167,2.80316,3567.4,3566.7,0.7948]
[1732869491497,0.26269868,3567.3,3566.7,0.7948]
[1732869491802,0.26269868,3567.2,3566.7,0.7948]
[1732869491961,2.80324,3567.3,3566.7,1.58455661]
[1732869492166,0.26270512,3567.2,3566.7,1.58455661]
[1732869492498,2.80324,3567.3,3566.7,4.38825661]
[1732869492815,0.26269832,3567.2,3566.7,4.38825661]
[1732869492966,2.80324,3567.3,3566.7,4.38825661]
[1732869493167,0.26269854,3567.2,3566.7,4.38825661]
[1732869493367,2.80324,3567.3,3566.7,4.38825661]
[1732869493587,0.26269313,3567.2,3566.7,4.38825661]
[1732869493933,2.80327,3567.3,3566.7,1.58455661]
[1732869494200,0.26270005,3567.2,3566.7,1.58455661]
[1732869494373,2.80327,3567.3,3566.7,1.58455661]
[1732869494582,0.26268327,3567.2,3566.7,1.58455661]
[1732869494804,2.80327,3567.3,3566.7,1.58455661]
[1732869495105,0.26268672,3567.2,3566.7,4.38825661]
[1732869495275,2.803,3567.6,3566.8,0.86871627]
[1732869495483,0.26267711,3567.5,3566.7,3.5985]
[1732869495673,0.26267711,3567.4,3566.7,3.5985]
[1732869495876,0.26267711,3567.3,3566.8,0.02963228]
[1732869496101,2.80317,3567.4,3566.8,0.02963228]
[1732869496303,0.2626752,3567.3,3566.9,0.798]
[1732869496515,0.26264891,3567.7,3567.2,2.80331]
[1732869496677,0.7701,3568.1,3567.2,2.80331]
[1732869496678,0.26264891,3567.6,3567.2,2.80331]
[1732869496867,0.26264891,3567.5,3567.3,0.02949024]
[1732869497063,2.80287,3567.8,3567.3,0.02949024]
[1732869497364,0.26263285,3567.7,3567.4,0.02945055]
[1732869497565,0.26263285,3567.6,3567.2,2.80331]
[1732869497761,0.26263285,3567.5,3567.3,0.02949024]
[1732869497960,0.26263302,3568.0,3567.4,3.62759]
[1732869498199,0.26263302,3567.9,3567.5,0.02941086]
[1732869498413,0.26263302,3567.8,3567.5,0.02941086]
[1732869498566,0.26263302,3567.7,3567.5,0.02941086]
[1732869498772,3.57271,3568.1,3567.5,0.02941086]
[1732869499103,0.26261904,3568.0,3567.5,0.02941086]
[1732869499306,3.57271,3568.1,3567.5,0.02941086]
[1732869499628,0.26263072,3568.0,3567.5,0.02941086]
[1732869500007,0.26263072,3567.9,3567.5,0.02941086]
[1732869500210,0.26263072,3567.8,3567.5,0.02941086]
[1732869500407,0.26263072,3567.7,3567.5,0.02941086]
[1732869500628,3.57271,3568.1,3567.5,0.02941086]
[1732869500826,0.26265181,3568.0,3567.5,0.02941086]
[1732869501037,0.26265181,3567.9,3567.5,0.02941086]
[1732869501238,0.26265181,3567.8,3567.5,2.83242086]
[1732869501529,0.26265181,3567.7,3567.6,3.44900109]
[1732869501751,0.26265181,3567.7,3567.6,3.47834036]
[1732869502877,0.26268033,3567.7,3567.6,0.67534036]
[1732869502997,0.26268033,3567.7,3567.6,0.02933927]
[1732869503194,0.26268033,3567.7,3567.4,3.62759]
[1732869503493,2.80255,3568.2,3567.5,0.02937896]
[1732869503693,0.26266584,3568.1,3567.5,0.02937896]
[1732869503904,0.26266584,3568.0,3567.5,0.02937896]
[1732869504131,0.26266584,3567.9,3567.5,0.02937896]
[1732869504433,0.26266584,3567.8,3567.5,0.02937896]
[1732869504630,2.80255,3568.2,3567.5,0.02937896]
[1732869504930,0.26264019,3568.1,3567.5,0.02937896]
[1732869505137,0.26264019,3568.0,3567.5,0.02937896]
[1732869505296,2.80255,3568.2,3567.5,2.83242896]
[1732869505297,0.26264019,3567.9,3567.5,2.83242896]
[1732869505497,0.26264019,3567.8,3567.5,2.83242896]
[1732869505700,2.80255,3568.2,3567.5,2.83242896]
[1732869506101,0.26261831,3568.1,3567.5,2.83242896]
[1732869506317,0.26261831,3568.0,3567.5,2.83242896]
[1732869506515,0.26261831,3567.9,3567.5,2.83242896]
[1732869506734,0.26261831,3567.8,3567.5,2.83242896]
[1732869506925,2.80255,3568.2,3567.5,2.83242896]
[1732869507140,0.26260899,3568.1,3567.5,2.83242896]
[1732869507346,0.26260899,3568.0,3567.5,2.83242896]
[1732869507559,0.8193,3568.3,3567.5,0.02937896]
[1732869507560,2.80286,3567.8,3567.5,0.02937896]
[1732869507713,0.3065469,3567.7,3567.5,0.02937896]
[1732869508054,0.26260991,3567.6,3567.2,0.7814]
[1732869508256,2.80269,3568.0,3567.2,0.7814]
[1732869508543,3.06544251,3567.9,3567.3,0.02925424]
[1732869508749,0.26261251,3567.8,3567.3,0.02925424]
[1732869508923,0.26261251,3567.7,3567.2,0.7814]
[1732869509251,0.26261251,3567.6,3567.3,0.0292616]
[1732869509459,2.80264,3568.1,3567.3,2.8324316]
[1732869509745,3.06529792,3568.0,3567.4,0.02929585]
[1732869509932,0.26260792,3567.9,3567.4,0.02929585]
[1732869510119,0.26260792,3567.8,3567.4,0.02929585]
[1732869510324,2.80279,3567.9,3567.4,0.02929585]
[1732869510533,0.26259687,3567.8,3567.4,0.02929585]
[1732869510742,0.26259687,3567.7,3567.4,0.02929585]
[1732869510915,2.80279,3567.9,3567.4,0.02929585]
[1732869511111,0.26259952,3567.8,3567.4,0.02929585]
[1732869511342,0.26259952,3567.7,3567.4,0.02929585]
[1732869511544,2.80279,3567.9,3567.4,0.02929585]
[1732869511749,0.26260716,3567.8,3567.4,0.02929585]
[1732869511918,0.26260716,3567.7,3567.4,0.02929585]
[1732869512119,2.80279,3567.9,3567.4,0.02929585]
[1732869512355,0.26261467,3567.8,3567.4,0.02929585]
[1732869512544,2.80279,3567.9,3567.4,0.02929585]
[1732869512545,0.26261467,3567.7,3567.4,0.02929585]
[1732869512741,2.80279,3567.9,3567.4,0.02929585]
[1732869512939,0.26261385,3567.8,3567.4,0.02929585]
[1732869513145,0.26261385,3567.7,3567.2,3.5847]
[1732869513348,2.80279,3567.9,3567.3,0.6681899]
[1732869513544,0.26262592,3567.8,3567.3,0.6681899]
[1732869513749,0.26262592,3567.7,3567.3,0.6681899]
[1732869514054,2.80279,3567.9,3567.3,0.6681899]
[1732869514234,0.26262497,3567.8,3567.3,0.0293799]
[1732869514446,0.26262497,3567.7,3567.3,0.0293799]
[1732869514620,2.80261,3568.1,3567.3,2.8032]
[1732869514821,3.06532867,3568.0,3567.4,0.02934021]
[1732869515023,3.06540867,3567.9,3567.4,0.02934021]
[1732869515222,0.26263867,3567.8,3567.4,0.02934021]
[1732869515523,0.26263867,3567.7,3567.4,0.02934021]
[1732869515731,0.26263867,3567.6,3567.4,0.02934021]
[1732869516071,2.80277,3567.9,3567.4,0.02934021]
[1732869516373,0.26264471,3567.8,3567.4,0.02934021]
[1732869516530,0.26264471,3567.7,3567.4,0.02934021]
[1732869516734,0.26264551,3567.6,3567.4,2.83248021]
[1732869516918,2.80263,3568.1,3567.4,2.83248021]
[1732869517124,3.06533414,3568.0,3567.4,0.02934021]
[1732869517446,0.26264414,3567.9,3567.3,2.80323]
[1732869517653,0.26264414,3567.8,3567.5,0.02835]
[1732869517846,0.26264414,3567.7,3567.4,0.02838969]
[1732869518148,2.80277,3567.9,3567.5,0.02835]
[1732869518327,0.26264161,3567.8,3567.3,2.80323]
[1732869518522,0.26264161,3567.7,3567.4,0.02862628]
[1732869518831,0.26264161,3567.6,3567.2,0.7814]
[1732869519030,2.80287,3567.8,3567.5,0.02836963]
[1732869519238,0.26264551,3567.7,3567.2,0.7814]
[1732869519426,0.42023088,3567.7,3567.6,0.02832994]
[1732869519763,0.26264076,3567.7,3567.6,0.02833976]
[1732869519924,0.26264076,3567.7,3567.2,3.5847]
[1732869520253,3.22301088,3567.9,3567.2,3.5847]
[1732869520254,0.26264268,3567.6,3567.3,0.02845884]
[1732869520461,0.26264268,3567.5,3567.3,0.02845884]
[1732869520634,0.42022829,3567.8,3567.2,4.37302261]
[1732869520832,0.68289113,3567.7,3567.4,0.02841914]
[1732869521023,0.26266284,3567.6,3567.3,0.02845884]
[1732869521223,0.26266284,3567.5,3567.2,3.5847]
[1732869521537,0.4202803,3567.8,3567.2,3.5847]
[1732869521737,0.68297338,3567.7,3567.2,0.7814]
[1732869521936,0.68297338,3567.6,3567.2,0.7814]
[1732869522268,0.26268207,3567.5,3567.2,0.7814]
[1732869522562,0.26268207,3567.4,3567.2,0.7814]
[1732869522758,0.26268207,3567.3,3567.2,0.7814]
[1732869523822,0.42038482,3567.7,3567.2,0.7814]
[1732869524062,0.68312344,3567.6,3567.2,0.7814]
[1732869524234,0.26273862,3567.5,3567.2,0.7814]
[1732869524566,3.58145,3567.8,3567.2,0.7814]
[1732869524567,0.26273862,3567.4,3567.2,0.7814]
[1732869524722,3.58145,3567.8,3567.2,0.7814]
[1732869524723,0.26273862,3567.3,3567.2,1.439878]
[1732869525036,0.42044746,3567.7,3567.2,4.243188]
[1732869525238,0.68329533,3567.6,3567.2,4.243188]
[1732869525422,0.26277388,3567.5,3567.2,4.243188]
[1732869525622,0.26277388,3567.4,3567.3,0.37033898]
[1732869525818,0.26277388,3567.4,3567.3,0.39879291]
[1732869526460,0.26277388,3567.4,3567.3,3.20203291]
[1732869527169,2.8027,3568.0,3567.3,3.20203291]
[1732869527325,0.68350474,3567.9,3567.3,3.20203291]
[1732869527526,0.68350474,3567.8,3567.3,3.20203291]
[1732869527837,0.68350474,3567.7,3567.3,3.20203291]
[1732869528018,0.26288747,3567.6,3567.4,0.74453009]
[1732869528223,0.26288747,3567.5,3567.4,0.74453009]
[1732869529438,0.26288747,3567.5,3567.2,0.7814]
[1732869529755,0.26288747,3567.4,3567.2,0.7814]
[1732869529954,0.26288747,3567.3,3567.2,0.7814]
[1732869530657,0.26290606,3567.3,3567.2,0.7814]
[1732869530850,0.26290614,3567.3,3567.2,0.7814]
[1732869532432,0.26290614,3567.3,3566.9,0.8223]
[1732869532635,0.8077,3567.8,3566.9,0.8223]
[1732869532636,0.26290614,3567.2,3566.9,4.13790761]
[1732869532966,2.80301,3567.6,3566.9,4.13790761]
[1732869532967,0.26290636,3567.1,3566.9,1.33439761]
[1732869533265,2.80321,3567.4,3566.9,0.8223]
[1732869533568,0.26288704,3567.3,3566.9,0.8223]
[1732869533728,0.26288704,3567.2,3566.9,0.8223]
[1732869533928,0.26288704,3567.1,3566.9,0.8223]
[1732869534145,2.80321,3567.4,3566.9,0.8223]
[1732869534381,0.26287162,3567.3,3566.9,0.8223]
[1732869534535,0.26287162,3567.2,3566.9,0.8223]
[1732869534737,0.26287162,3567.1,3566.9,0.8223]
[1732869535070,2.80321,3567.4,3566.9,0.8223]
[1732869535256,0.26287216,3567.3,3566.9,0.8223]
[1732869535461,0.26287216,3567.2,3566.9,0.8223]
[1732869535629,0.26287216,3567.1,3566.9,0.8223]
[1732869535825,2.80321,3567.4,3566.9,0.8223]
[1732869536077,0.26286513,3567.3,3566.9,0.8223]
[1732869536373,0.26286513,3567.2,3566.9,0.8223]
[1732869536546,2.80321,3567.4,3566.9,0.8223]
[1732869536752,0.26285672,3567.3,3566.9,0.8223]
[1732869537078,0.26285672,3567.2,3566.9,0.8223]
[1732869537244,0.26285672,3567.1,3566.9,0.8223]
[1732869537442,0.42055955,3567.4,3566.9,0.8223]
[1732869537657,0.26284922,3567.3,3566.9,0.8223]
[1732869537984,0.26284922,3567.2,3566.9,0.8223]
[1732869538280,0.26284922,3567.1,3567.0,4.29852614]
[1732869538572,0.42051915,3567.7,3567.2,2.8033]
[1732869538772,0.68333873,3567.6,3567.2,2.8033]
[1732869538973,0.26281958,3567.5,3567.2,2.8033]
[1732869539136,0.26281958,3567.4,3567.2,3.68958811]
[1732869539342,0.42050795,3567.9,3567.2,3.68958811]
[1732869539638,3.48617521,3567.8,3567.2,3.68958811]
[1732869539869,0.68332521,3567.7,3567.2,3.68958811]
[1732869540181,0.68332521,3567.6,3567.2,3.68958811]
[1732869540336,0.26281726,3567.5,3567.2,3.68958811]
[1732869540538,0.26281726,3567.4,3567.3,4.48515143]
[1732869540775,2.3498604,3568.5,3567.3,4.48515143]
[1732869540776,0.42051475,3567.9,3567.6,2.80294]
[1732869540976,2.80243,3568.4,3567.7,2.83055856]
[1732869541135,2.80226,3568.6,3567.8,2.80284]
[1732869541341,2.80226,3568.6,3567.9,3.63877224]
[1732869541342,0.68324657,3568.5,3567.9,3.63877224]
[1732869541541,0.68324657,3568.4,3567.9,3.63877224]
[1732869541783,0.68324657,3568.3,3567.9,3.63877224]
[1732869542082,0.68324657,3568.2,3567.9,3.63877224]
[1732869542380,0.768,3568.7,3567.9,3.63877224]
[1732869542381,0.68324657,3568.1,3567.9,0.83602224]
[1732869542562,2.80238,3568.4,3567.9,0.83602224]
[1732869542563,0.26278364,3568.0,3567.9,0.83602224]
[1732869543037,0.26278364,3568.0,3567.9,3.63878224]
[1732869543737,0.26278364,3568.0,3567.9,0.83602224]
[1732869544382,0.26278364,3568.0,3567.9,3.63878224]
[1732869545484,0.26278364,3568.0,3567.9,4.28296046]
[1732869545782,0.42046293,3568.6,3568.1,2.80257]
[1732869545963,0.68300383,3568.5,3568.2,0.02710107]
[1732869546140,0.2625409,3568.4,3568.2,0.02710107]
[1732869546343,0.2625409,3568.3,3568.2,0.02710107]
[1732869546574,0.26246912,3568.3,3568.2,0.02710107]
[1732869549290,2.80209,3568.8,3568.2,0.02710107]
[1732869549476,0.26229654,3568.7,3568.2,0.02710107]
[1732869549678,0.26229654,3568.6,3568.2,0.02710107]
[1732869549895,0.26229597,3568.5,3568.2,0.02710107]
[1732869550099,0.26229597,3568.4,3568.2,0.02710107]
[1732869550464,2.80209,3568.8,3568.2,0.02710107]
[1732869550665,0.26224266,3568.7,3568.2,0.02710107]
[1732869550865,0.26224266,3568.6,3568.2,0.02710107]
[1732869551174,0.26224266,3568.5,3568.2,0.02710107]
[1732869551376,0.26224266,3568.4,3568.2,0.02710107]
[1732869551577,2.80209,3568.8,3568.2,0.02710107]
[1732869551896,3.06434958,3568.7,3568.2,0.02710107]
[1732869552104,0.26219958,3568.6,3568.2,0.02710107]
[1732869552263,0.26219958,3568.5,3568.0,2.80266]
[1732869552463,0.26219958,3568.4,3568.3,0.02685834]
[1732869552701,0.26219958,3568.6,3568.0,2.80266]
[1732869552912,0.26219958,3568.5,3568.3,0.02685834]
[1732869553200,0.26219958,3568.4,3568.0,2.80266]
[1732869553410,0.26219958,3568.6,3568.0,3.12678386]
[1732869553901,0.26219958,3568.5,3568.0,2.80266]
[1732869554102,0.26219958,3568.4,3568.0,2.80266]
[1732869554260,0.26219958,3568.6,3568.1,2.8026]
[1732869554463,0.26219958,3568.5,3568.1,2.8026]
[1732869554663,0.26219958,3568.4,3568.1,2.8026]
[1732869554907,2.80215,3568.7,3568.1,2.8026]
[1732869555201,0.26214259,3568.6,3568.1,2.8026]
[1732869555402,0.26214259,3568.5,3568.1,2.8026]
[1732869555639,0.26214259,3568.4,3568.1,2.8026]
[1732869555794,0.26214259,3568.4,3567.9,0.8085]
[1732869555795,0.26214259,3568.6,3568.2,0.02689802]
[1732869555991,0.26214259,3568.5,3568.0,2.80266]
[1732869556217,0.26214259,3568.4,3568.1,0.0269377]
[1732869556405,0.26214259,3568.6,3568.1,0.0269377]
[1732869556605,0.26214259,3568.5,3568.1,0.0269377]
[1732869556932,0.26214259,3568.4,3568.1,0.0269377]
[1732869557094,0.26211417,3568.6,3568.1,0.0269377]
[1732869557300,0.26211417,3568.5,3568.1,0.0269377]
[1732869557605,0.26211417,3568.4,3568.1,0.0269377]
[1732869557818,0.26211417,3568.6,3568.1,0.0269377]
[1732869558138,2.80253,3568.2,3568.1,0.0269377]
[1732869558338,3.82544417,3568.2,3568.1,0.0269377]
[1732869558489,2.80267,3568.1,3567.4,2.80313]
[1732869558836,0.26211417,3568.0,3567.4,2.80313]
[1732869559022,2.80267,3568.1,3567.4,2.80313]
[1732869559230,0.2621484,3568.0,3567.4,2.80313]
[1732869559433,0.2621484,3567.9,3567.4,3.30828424]
[1732869559634,0.2621484,3568.0,3567.4,3.30828424]
[1732869559851,0.2621484,3567.9,3567.4,3.30828424]
[1732869560016,0.2621484,3568.0,3567.4,3.30828424]
[1732869560228,0.26215413,3567.9,3567.4,3.30828424]
[1732869560458,0.26215413,3568.0,3567.5,0.84233404]
[1732869560751,0.26216407,3568.1,3567.6,3.56137]
[1732869560926,0.26216407,3568.0,3567.6,3.56137]
[1732869561126,0.26216407,3568.2,3567.6,3.56137]
[1732869561455,0.26216407,3568.1,3567.6,3.56137]
[1732869561626,0.26216407,3568.0,3567.7,2.80291]
[1732869561830,0.26216407,3568.2,3567.7,2.80291]
[1732869562168,0.26216407,3568.1,3567.7,2.80291]
[1732869562316,0.26216407,3568.0,3567.7,2.80291]
[1732869562523,0.26216407,3568.2,3567.7,2.80291]
[1732869562738,0.26216407,3568.1,3567.7,2.80291]
[1732869562984,0.26216407,3568.0,3567.7,2.80291]
[1732869563157,0.26216407,3568.2,3567.7,2.80291]
[1732869563339,0.26224063,3568.1,3567.7,2.80291]
[1732869563537,0.26224063,3568.0,3567.7,2.80291]
[1732869563734,2.80247,3568.3,3567.7,2.80291]
[1732869563937,0.26223825,3568.2,3567.7,2.80291]
[1732869564163,0.26223825,3568.1,3567.6,1.59487304]
[1732869564328,0.26223825,3568.0,3567.6,4.39785304]
[1732869564658,2.80247,3568.3,3567.6,4.39785304]
[1732869564845,0.26228301,3568.2,3567.6,3.56138]
[1732869565053,0.26228301,3568.1,3567.6,3.56138]
[1732869565364,0.26228301,3568.0,3567.6,3.56138]
[1732869565566,2.80247,3568.3,3567.6,3.56138]
[1732869565867,0.26233222,3568.2,3567.6,3.56138]
[1732869566023,2.80247,3568.3,3567.6,3.56138]
[1732869566223,0.26233374,3568.1,3567.6,3.56138]
[1732869566444,2.80247,3568.3,3567.6,3.56138]
[1732869566445,0.26233374,3568.0,3567.7,0.636453]
[1732869566644,2.80247,3568.3,3567.7,0.636453]
[1732869566856,0.26239117,3568.2,3567.6,3.56138]
[1732869567044,0.26239117,3568.1,3567.6,3.56138]
[1732869567245,0.26239117,3568.0,3567.6,3.56138]
[1732869567530,0.26239117,3567.9,3567.6,3.56138]
[1732869567726,3.22220399,3568.3,3567.6,3.56138]
[1732869567976,0.26246766,3568.2,3567.6,3.56138]
[1732869568276,0.26246766,3568.1,3567.7,2.80288]
[1732869568458,0.26246766,3568.0,3567.6,1.54435861]
[1732869568644,3.60029,3568.5,3567.6,1.54435861]
[1732869568645,0.41973399,3568.3,3567.8,2.80283]
[1732869568847,0.2625615,3568.2,3567.8,2.80283]
[1732869569050,0.2625615,3568.1,3567.8,2.80283]
[1732869569364,0.2625615,3568.0,3567.8,2.80283]
[1732869569571,0.41973399,3568.3,3567.8,3.58875861]
[1732869569766,0.26261453,3568.2,3567.8,2.80283]
[1732869569958,0.26261453,3568.1,3567.6,3.5614]
[1732869570158,0.26261453,3568.0,3567.7,2.80292]
[1732869570361,0.41973399,3568.3,3567.7,2.80292]
[1732869570542,0.26262613,3568.2,3567.7,2.80292]
[1732869570746,0.41973399,3568.3,3567.7,2.80292]
[1732869570747,0.26262664,3568.1,3567.7,2.80292]
[1732869570970,0.26262664,3568.0,3567.8,0.02702393]
[1732869571176,0.26262664,3568.0,3567.7,3.58887261]
[1732869571177,0.42020263,3568.3,3567.7,3.58887261]
[1732869571472,0.2626326,3568.2,3567.8,0.02702393]
[1732869571677,0.2626326,3568.1,3567.8,0.02702393]
[1732869571973,2.80241,3568.4,3567.7,2.80292]
[1732869571974,0.2626326,3568.0,3567.9,0.02698425]
[1732869572145,0.2626326,3568.0,3567.7,2.80292]
[1732869572345,0.2626326,3567.9,3567.8,0.02702393]
[1732869573071,0.2626326,3567.9,3567.7,2.80292]
[1732869573277,3.22266263,3568.3,3567.8,0.02702393]
[1732869573437,1.17565066,3568.8,3567.8,0.02702393]
[1732869573438,0.807,3568.0,3567.8,0.02702393]
[1732869573638,3.06539649,3567.9,3567.3,0.7776]
[1732869573971,3.06553649,3567.8,3567.4,0.02711643]
[1732869574137,0.26266652,3567.7,3567.4,0.02711643]
[1732869574358,0.26266652,3567.6,3567.4,0.02711643]
[1732869574692,2.8029,3567.8,3567.4,0.02711643]
[1732869574911,0.26263852,3567.7,3567.4,0.02711643]
[1732869575192,0.26263852,3567.6,3567.5,0.02707674]
[1732869575359,0.26263852,3567.6,3567.1,3.58248]
[1732869575558,2.8029,3567.8,3567.2,0.02719582]
[1732869575759,0.26260555,3567.7,3567.2,0.02719582]
[1732869575954,0.26260555,3567.6,3567.2,0.02719582]
[1732869576195,2.80292,3567.7,3567.2,0.02719582]
[1732869576498,0.26257374,3567.6,3567.2,0.02719582]
[1732869576871,0.26257374,3567.5,3567.2,0.02719582]
[1732869577073,2.80292,3567.7,3567.2,0.02719582]
[1732869577394,0.26254554,3567.6,3567.2,0.02719582]
[1732869577690,2.80292,3567.7,3567.2,0.02719582]
[1732869577891,0.26254498,3567.6,3567.2,0.02719582]
[1732869578070,2.80292,3567.7,3567.2,0.81802302]
[1732869578392,0.26252622,3567.6,3567.2,0.02719582]
[1732869578558,2.80292,3567.7,3567.2,0.02719582]
[1732869578761,0.26252635,3567.6,3567.3,1.49505614]
[1732869579061,2.80267,3568.1,3567.4,3.62274643]
[1732869579370,0.6825301,3568.0,3567.4,3.62274643]
[1732869579567,0.6825301,3567.9,3567.4,4.41485869]
[1732869579767,0.26251567,3567.8,3567.4,1.61172869]
[1732869579970,0.26251567,3567.7,3567.5,2.80306]
[1732869580173,0.42002109,3567.9,3567.6,2.83196827]
[1732869580383,0.26252731,3567.8,3567.6,2.83196827]
[1732869580604,0.26252731,3567.7,3567.6,2.83196827]
[1732869580963,0.26252262,3567.7,3567.6,2.83196827]
[1732869581160,0.26252311,3567.7,3567.6,3.34392071]
[1732869581368,0.42007073,3568.2,3567.6,3.34392071]
[1732869581664,0.68261317,3568.1,3567.6,2.83196827]
[1732869581870,0.26254244,3568.0,3567.7,0.768]
[1732869582176,2.80247,3568.3,3567.8,0.02888323]
[1732869582177,0.26254244,3567.9,3567.8,0.02888323]
[1732869582378,0.26254244,3567.9,3567.7,0.768]
[1732869582577,0.26254244,3567.8,3567.7,0.768]
[1732869582780,0.26254244,3567.8,3567.7,1.55492061]
[1732869583400,0.26254244,3567.8,3567.7,5.85289675]
[1732869583778,2.80232,3568.5,3567.7,3.04997675]
[1732869583980,0.6826871,3568.4,3567.8,2.80283]
[1732869584189,0.6826871,3568.3,3567.8,2.80283]
[1732869584386,0.6826871,3568.2,3567.8,2.80283]
[1732869584593,0.6826871,3568.1,3567.8,2.80283]
[1732869584766,0.26257196,3568.0,3567.8,2.80283]
[1732869584965,0.26257196,3567.9,3567.8,3.59252726]
[1732869585797,0.26257196,3567.9,3567.8,3.62143152]
[1732869586307,0.26257196,3567.9,3567.8,4.43013152]
[1732869586469,0.4201869,3568.2,3568.1,2.80261]
[1732869586668,0.26262148,3568.2,3568.1,2.80261]
[1732869586864,0.26262148,3568.2,3568.1,2.8314184]
[1732869587705,0.26262148,3568.2,3568.1,4.33767497]
[1732869588010,0.8284,3568.9,3568.2,2.80249]
[1732869588217,0.68277378,3568.8,3568.3,0.02872338]
[1732869588412,0.68277378,3568.7,3568.2,2.80249]
[1732869588567,0.2626053,3568.6,3568.3,0.02872338]
[1732869588771,0.2626053,3568.5,3568.2,2.80248]
[1732869588972,0.42016848,3568.8,3568.3,0.02872338]
[1732869589192,0.26253278,3568.7,3568.2,2.80248]
[1732869589403,0.26253278,3568.6,3568.3,0.02872338]
[1732869589606,0.26253278,3568.5,3568.2,2.80248]
[1732869589797,3.22222848,3568.8,3568.3,0.02872338]
[1732869590001,0.26247532,3568.7,3568.2,2.80248]
[1732869590207,0.26247532,3568.6,3568.3,0.02872338]
[1732869590534,0.26247532,3568.5,3568.2,2.80248]
[1732869590709,3.22222848,3568.8,3568.2,2.80248]
[1732869590710,3.22222848,3568.8,3568.4,0.02874408]
[1732869590897,0.26243272,3568.7,3568.3,0.02878659]
[1732869591220,0.26242557,3568.6,3568.4,0.02878359]
[1732869591522,2.80206,3568.8,3568.2,2.80248]
[1732869591722,0.26238347,3568.7,3568.5,0.02874108]
[1732869591921,0.26238347,3568.6,3568.2,2.80248]
[1732869592220,2.80206,3568.8,3568.2,2.80248]
[1732869592384,0.26233487,3568.7,3568.2,2.80248]
[1732869592583,3.63038,3568.9,3568.1,0.783]